Workbook

Sheet Sheet1
A1: Example enzyme kinetics calculation using the Solver function - Alanine racemase (Alr) with D-ala (DA) as a substrate
A3: Substrate (mM) | B3: Rate avg | C3: Calc avg | D3: delta^2 | F3: Std dev | H3: Substrate (mM) | I3: Rate1 | J3: Calc1 | K3: delta^2 1 | M3: Substrate (mM) | N3: Rate2 | O3: Calc2 | P3: delta^2 2 | R3: Substrate (mM) | S3: Rate3 | T3: Calc3 | U3: delta^2 3
A4: 0.05 | B4: =AVERAGE(I4,N4,S4) -> 0.001373676667 | C4: =VmaxAlrDA*A4/(KmAlrDA+A4) -> 0.0001696683537 | D4: =(B4-C4)^2 -> 1.449636018e-06 | F4: =STDEV(I4,N4,S4) -> 0.0001023663174 | H4: 0.05 | I4: 0.00143685 | J4: =VmaxAlrDA1*H4/(KmAlrDA1+H4) -> 0.0001881590788 | K4: =(I4-J4)^2 -> 1.559229017e-06 | M4: 0.05 | N4: 0.00125557 | O4: =VmaxAlrDA2*M4/(KmAlrDA2+M4) -> 0.0001704708061 | P4: =(N4-O4)^2 -> 1.177440261e-06 | R4: 0.05 | S4: 0.00142861 | T4: =VmaxAlrDA3*R4/(KmAlrDA3+R4) -> 0.0001517484591 | U4: =(S4-T4)^2 -> 1.630375395e-06
A5: 0.5 | B5: =AVERAGE(I5,N5,S5) -> 0.002630276667 | C5: 0.001649585257 | D5: =(B5-C5)^2 -> 9.617556415e-07 | F5: =STDEV(I5,N5,S5) -> 0.0001075959778 | H5: 0.5 | I5: 0.0026471 | J5: 0.00182234338 | K5: =(I5-J5)^2 -> 6.802234819e-07 | M5: 0.5 | N5: 0.00251526 | O5: 0.001654913912 | P5: =(N5-O5)^2 -> 7.401953903e-07 | R5: 0.5 | S5: 0.00272847 | T5: 0.001482613469 | U5: =(S5-T5)^2 -> 1.552158496e-06
A6: 1 | B6: 0.00317549 | C6: 0.003200457643 | D6: 6.233832059e-10 | F6: 0.0006702293181 | H6: 1 | I6: 0.00276761 | J6: 0.003521482096 | K6: 5.68323137e-07 | M6: 1 | N6: 0.00280984 | O6: 0.003205783134 | P6: 1.567709653e-07 | R6: 1 | S6: 0.00394902 | T6: 0.002891401252 | U6: 1.118557416e-06
A7: 2.5 | B7: 0.007095326667 | C7: 0.00734210545 | D7: 6.089976783e-08 | F7: 9.289054491e-06 | H7: 2.5 | I7: 0.00709464 | J7: 0.007993110108 | K7: 8.072485343e-07 | M7: 2.5 | N7: 0.00710494 | O7: 0.00732378647 | P7: 4.789377753e-08 | R7: 2.5 | S7: 0.0070864 | T7: 0.0067261196 | U7: 1.298019668e-07
A8: 5 | B8: 0.01365402333 | C8: 0.01291169261 | D8: 5.510549054e-07 | F8: 0.002829538856 | H8: 5 | I8: 0.01669527 | J8: 0.01385939619 | K8: 8.042180264e-06 | M8: 5 | N8: 0.01109928 | O8: 0.01280796164 | P8: 2.919592932e-06 | R8: 5 | S8: 0.01316752 | T8: 0.01205577184 | U8: 1.235983974e-06
A9: 10 | B9: 0.02187136333 | C9: 0.02080151882 | D9: 1.144567274e-06 | F9: 0.0008457104976 | H9: 10 | I9: 0.02089561 | J9: 0.02189335984 | K9: 9.955047493e-07 | M9: 10 | N9: 0.02232525 | O9: 0.02047336118 | P9: 3.429492206e-06 | R9: 10 | S9: 0.02239323 | T9: 0.01996619147 | U9: 5.890516016e-06
A10: 15 | B10: 0.02581592 | C10: 0.02612228491 | D10: 9.385945588e-08 | F10: 0.001377804324 | H10: 15 | I10: 0.02632268 | J10: 0.02713689901 | K10: 6.629525976e-07 | M10: 15 | N10: 0.02686858 | O10: 0.02557557904 | P10: 1.67185148e-06 | R10: 15 | S10: 0.0242565 | T10: 0.02555565727 | U10: 1.687809607e-06
A11: 20 | B11: 0.02872086333 | C11: 0.02995309708 | D11: 1.518400001e-06 | F11: 0.001918491154 | H11: 20 | I11: 0.03062705 | J11: 0.03082869068 | K11: 4.065896503e-08 | M11: 20 | N11: 0.02874524 | O11: 0.02921608623 | P11: 2.2169617e-07 | R11: 20 | S11: 0.0267903 | T11: 0.0297149566 | U11: 8.553616199e-06
A12: 30 | B12: 0.03516797667 | C12: 0.03510056715 | D12: 4.544042454e-09 | F12: 0.001356140938 | H12: 30 | I12: 0.03424235 | J12: 0.03568314078 | K12: 2.075878063e-06 | M12: 30 | N12: 0.03453693 | O12: 0.03406500455 | P12: 2.22713628e-07 | R12: 30 | S12: 0.03672465 | T12: 0.03549133215 | U12: 1.52107292e-06
A13: 40 | B13: 0.03598305 | C13: 0.03840011662 | D13: 5.842211068e-06 | F13: 0.00270694484 | H13: 40 | I13: 0.03861779 | J13: 0.03873266696 | K13: 1.319671563e-08 | M13: 40 | N13: 0.03320926 | O13: 0.03714765467 | P13: 1.55109526e-05 | R13: 40 | S13: 0.0361221 | T13: 0.03931235258 | U13: 1.017771152e-05
A14: 50 | B14: 0.04321021667 | C14: 0.04069540432 | D14: 6.324281141e-06 | F14: 0.002530371325 | H14: 50 | I14: 0.04465565 | J14: 0.04082609677 | K14: 1.466547796e-05 | M14: 50 | N14: 0.04028845 | O14: 0.03928042044 | P14: 1.016123585e-06 | R14: 50 | S14: 0.04468655 | T14: 0.04202715549 | U14: 7.072379155e-06
A15: 75 | B15: 0.04424811333 | C15: 0.0442195834 | D15: 8.139573287e-10 | F15: 0.002319003846 | H15: 75 | I15: 0.04214348 | J15: 0.04399668383 | K15: 3.43436442e-06 | M15: 75 | N15: 0.04386667 | O15: 0.04253664 | P15: 1.76897979e-06 | R15: 75 | S15: 0.04673419 | T15: 0.04628930488 | U15: 1.979227702e-07
C16: sum: | D16: =SUM(D4:D15) -> 1.795264665e-05 | J16: sum: | K16: =SUM(K4:K15) -> 3.35452379e-05 | O16: sum: | P16: =SUM(P4:P15) -> 2.888370279e-05 | T16: sum: | U16: =SUM(U4:U15) -> 4.076790544e-05
B17: KmAlrDA | C17: 15.7109441 | F17: =STDEV(KmAlrDA1,KmAlrDA2,KmAlrDA3) -> 2.789489605 | I17: KmAlrDA1 | J17: 13.79118821 | N17: KmAlrDA2 | O17: 14.90579872 | S17: KmAlrDA3 | T17: 19.08262372
B18: VmaxAlrDA | C18: 0.05348266877 | F18: =STDEV(VmaxAlrDA1,VmaxAlrDA2,VmaxAlrDA3) -> 0.003808714187 | I18: VmaxAlrDA1 | J18: 0.05208690446 | N18: VmaxAlrDA2 | O18: 0.05099054126 | S18: VmaxAlrDA3 | T18: 0.05806692338
L22: Rate - initial velocity in mM L-ala/min*ug enz
L23: Calc - calculated initial velocity based on Michaelis-Menten equation and estimated Km and Vmax values
L24: delta^2 - minimized squared difference between empirical and calculated data
L25: sum - sum of the minimized squared differences (Solver varies the Km and Vmax to minimize this value)
